fUST/lending_fUST_20240215
["ID","MTS","AMOUNT","RATE_DAILY","PERIOD"]
[314099573,1707977443244,-177.99860633,0.000359,7]
[314099574,1707977443253,-177.99860633,0.000359,7]
[314099575,1707977443262,-177.99860633,0.000359,7]
[314099576,1707977443271,-177.99860633,0.000359,7]
[314099577,1707977443280,-177.99860633,0.000359,7]
[314099578,1707977443291,-177.99860633,0.000359,7]
[314099579,1707977443300,-177.99860633,0.000359,7]
[314099580,1707977443309,-177.99860633,0.000359,7]
[314099581,1707977443319,-177.99860633,0.000359,7]
[314099582,1707977443328,-177.99860633,0.000359,7]
[314099583,1707977443337,-177.99860633,0.000359,7]
[314099584,1707977443346,-177.99860633,0.000359,7]
[314099585,1707977443355,-177.99860633,0.000359,7]
[314099586,1707977443364,-300.0,0.00035957,3]
[314099587,1707977443372,-720.29,0.00035999,2]
[314099588,1707977443381,-720.29,0.00035999,2]
[314099589,1707977443390,-11961.38661853,0.00036,3]
[314099590,1707977443400,-1122.83432504,0.00036,3]
[314099591,1707977443408,-39807.86356863,0.00036,14]
[314099592,1707977443589,-158.0,0.00033,2]
[314099593,1707977443598,-99758.07050328,0.00036,14]
[314099594,1707977443614,-356.64948065,0.00036,14]
[314099620,1707977446205,-276.8,0.00036,14]
[314099699,1707978632336,-231.0,0.000323,2]
[314099700,1707978632346,-14493.98029353,0.000323,2]
[314099724,1707978638365,-18132.56438586,0.000323,2]
[314099726,1707978638374,-574.83,0.00032383,3]
[314099728,1707978638384,-44835.7572838,0.00032393,5]
[314099730,1707978638393,-12172.44162655,0.00032393,5]
[314099732,1707978638402,-1792.62444083,0.00032419,5]
[314099734,1707978638411,-166.666666,0.00032764,2]
[314099736,1707978638420,-24900.0,0.0003298,2]
[314099738,1707978638429,-163.0,0.00033,2]
[314099740,1707978638438,-170.087338,0.0003375,2]
[314099742,1707978638448,-364.29435265,0.000339,2]
[314099744,1707978638457,-200.0,0.00033914,15]
[314099746,1707978638466,-186.16413673,0.00034079,2]
[314099748,1707978638475,-155.0,0.00034162,2]
[314099750,1707978638484,-163.0,0.00034521,2]
[314099753,1707978638494,-153.053436,0.0003491,2]
[314099756,1707978638503,-309.97888558,0.00035,4]
[314099757,1707978638512,-5000.0,0.00035038,7]
[314099759,1707978638521,-5000.0,0.00035046,7]
[314099761,1707978638530,-5000.0,0.00035052,7]
[314099763,1707978638539,-500.0,0.00035158,15]
[314099765,1707978638548,-500.0,0.00035158,15]
[314099766,1707978638557,-183.61581775,0.00035158,15]
[314099768,1707978638566,-500.0,0.00035158,15]
[314099771,1707978638575,-265.57378665,0.00035158,15]
[314099772,1707978638585,-209.90373626,0.00035158,15]
[314099775,1707978638595,-241.81295279,0.00035158,15]
[314099777,1707978638605,-500.0,0.00035158,15]
[314099779,1707978638616,-500.0,0.00035158,15]
[314099781,1707978638625,-513.61772715,0.00035158,15]
[314099782,1707978638634,-500.0,0.00035158,15]
[314099784,1707978638643,-500.0,0.00035158,15]
[314099786,1707978638652,-500.0,0.00035158,15]
[314099787,1707978638671,-500.0,0.00035158,15]
[314099788,1707978638682,-618.82714633,0.00035158,15]
[314099789,1707978638691,-500.0,0.00035158,15]
[314099790,1707978638701,-500.0,0.00035158,15]
[314099791,1707978638711,-500.0,0.00035158,15]
[314099792,1707978638720,-500.0,0.00035158,15]
[314099794,1707978638729,-500.0,0.00035158,15]
[314099796,1707978638739,-500.0,0.00035158,15]
[314099798,1707978638749,-500.0,0.00035158,15]
[314099800,1707978638758,-500.0,0.00035158,15]
[314099802,1707978638767,-500.0,0.00035158,15]
[314099804,1707978638777,-500.0,0.00035158,15]
[314099806,1707978638786,-500.0,0.00035158,15]
[314099808,1707978638796,-500.0,0.00035158,15]
[314099810,1707978638807,-500.0,0.00035158,15]
[314099812,1707978638817,-500.0,0.00035158,15]
[314099814,1707978638826,-500.0,0.00035158,15]
[314099816,1707978638836,-500.0,0.00035158,15]
[314099818,1707978638846,-500.0,0.00035158,15]
[314099820,1707978638857,-500.0,0.00035158,15]
[314099822,1707978638866,-500.0,0.00035158,15]
[314099824,1707978638875,-500.0,0.00035158,15]
[314099826,1707978638885,-500.0,0.00035158,15]
[314099828,1707978638894,-600.97689419,0.00035158,15]
[314099830,1707978638904,-500.0,0.00035158,15]
[314099832,1707978638913,-500.0,0.00035158,15]
[314099834,1707978638923,-500.0,0.00035158,15]
[314099836,1707978638932,-500.0,0.00035158,15]
[314099838,1707978638941,-500.0,0.00035158,15]
[314099840,1707978638950,-500.0,0.00035158,15]
[314099842,1707978638960,-500.0,0.00035158,15]
[314099844,1707978638970,-250.0,0.00035161,2]
[314099846,1707978638979,-160.06,0.00035161,2]
[314099848,1707978638989,-160.06,0.00035161,2]
[314099850,1707978638999,-160.06,0.00035161,2]
[314099852,1707978639008,-160.06,0.00035161,2]
[314099854,1707978639018,-216.17,0.00035161,2]
[314099856,1707978639028,-439.36,0.00035161,2]
[314099858,1707978639037,-439.34,0.00035161,2]
[314099860,1707978639047,-439.34,0.00035161,2]
[314099862,1707978639056,-215633.97694543,0.00035162,2]
[314099864,1707978639066,-964.52211017,0.000352,2]
[314099867,1707978639077,-231.0,0.000353,2]
[314099869,1707978639087,-308.766801,0.00035342,2]
[314099871,1707978639096,-312.8842493,0.00035342,2]
[314099873,1707978639106,-200.230317,0.00035342,2]
[314099875,1707978639115,-200.230317,0.00035342,2]
[314099877,1707978639125,-173.1536496,0.00035342,2]
[314099879,1707978639134,-6003.28939041,0.000355,2]
[314099881,1707978639143,-155.0,0.00035532,2]
[314099883,1707978639153,-964.52211017,0.00035597,2]
[314099885,1707978639162,-500.0,0.00035616,7]
[314099887,1707978639171,-500.0,0.00035616,14]
[314099888,1707978639181,-500.0,0.00035616,7]
[314099891,1707978639190,-500.0,0.00035616,14]
[314099893,1707978639199,-500.0,0.00035616,14]
[314099895,1707978639210,-500.0,0.00035616,14]
[314099896,1707978639219,-500.0,0.00035616,14]
[314099899,1707978639229,-511.45052203,0.00035616,14]
[314099901,1707978639239,-500.0,0.00035616,14]
[314099903,1707978639248,-500.0,0.00035616,2]
[314099904,1707978639257,-504.17000545,0.00035616,14]
[314099906,1707978639268,-513.66558092,0.00035616,14]
[314099909,1707978639278,-500.0,0.00035616,14]
[314099911,1707978639288,-500.0,0.00035616,14]
[314099912,1707978639297,-500.0,0.00035616,14]
[314099915,1707978639307,-500.0,0.00035616,14]
[314099916,1707978639317,-500.0,0.00035616,14]
[314099919,1707978639327,-500.0,0.00035616,14]
[314099921,1707978639337,-500.0,0.00035616,14]
[314099923,1707978639346,-500.0,0.00035616,14]
[314099925,1707978639357,-518.41876064,0.00035616,14]
[314099927,1707978639366,-500.0,0.00035616,14]
[314099939,1707978639472,-500.0,0.00035616,14]
[314099941,1707978639482,-500.0,0.00035616,14]
[314099943,1707978639491,-500.0,0.00035616,14]
[314099945,1707978639500,-860.96,0.00035616,14]
[314099947,1707978639509,-500.0,0.00035616,14]
[314099950,1707978639519,-327.95238013,0.00035616,14]
[314099952,1707978639529,-500.0,0.00035616,14]
[314099954,1707978639538,-500.0,0.00035616,14]
[314099956,1707978639547,-500.0,0.00035616,14]
[314099958,1707978639556,-2137.07,0.00035616,7]
[314099960,1707978639565,-500.0,0.00035616,14]
[314099962,1707978639574,-500.0,0.00035616,14]
[314099964,1707978639584,-500.0,0.00035616,14]
[314099965,1707978639593,-285.50953037,0.00035616,14]
[314099968,1707978639604,-500.0,0.00035616,14]
[314099970,1707978639613,-510.46755575,0.00035616,14]
[314099971,1707978639623,-500.0,0.00035616,14]
[314099973,1707978639632,-517.39206153,0.00035616,14]
[314099975,1707978639641,-500.0,0.00035616,14]
[314099977,1707978639651,-195.99445327,0.00035616,14]
[314099979,1707978639660,-500.0,0.00035616,2]
[314099981,1707978639669,-500.0,0.00035616,14]
[314099983,1707978639677,-500.0,0.00035616,14]
[314099986,1707978639686,-500.0,0.00035616,14]
[314099988,1707978639695,-500.0,0.00035616,14]
[314099990,1707978639704,-184.23353177,0.00035616,14]
[314099991,1707978639713,-514.93351127,0.00035616,14]
[314099993,1707978639722,-500.0,0.00035616,14]
[314099995,1707978639732,-500.0,0.00035616,14]
[314099998,1707978639742,-500.0,0.00035616,14]
[314100000,1707978639751,-500.0,0.00035616,14]
[314100002,1707978639760,-401.6398544,0.00035616,14]
[314100004,1707978639769,-516.94149683,0.00035616,14]
[314100006,1707978639778,-644.72,0.00035616,14]
[314100008,1707978639787,-500.0,0.00035616,14]
[314100009,1707978639796,-504.24519245,0.00035616,14]
[314100011,1707978639808,-315.01598404,0.00035616,14]
[314100014,1707978639817,-512.21825011,0.00035616,14]
[314100016,1707978639826,-500.0,0.00035616,14]
[314100018,1707978639835,-528.03076737,0.00035616,14]
[314100020,1707978639845,-500.0,0.00035616,14]
[314100022,1707978639854,-500.0,0.00035616,14]
[314100024,1707978639863,-500.0,0.00035616,14]
[314100026,1707978639873,-500.0,0.00035616,2]
[314100028,1707978639883,-500.0,0.00035616,14]
[314100030,1707978639892,-510.79586648,0.00035616,14]
[314100032,1707978639901,-541.69581236,0.00035616,14]
[314100034,1707978639910,-945.76,0.00035616,14]
[314100036,1707978639919,-220.0,0.00035616,2]
[314100038,1707978639928,-607.78,0.00035616,14]
[314100040,1707978639937,-564.36544628,0.00035616,14]
[314100042,1707978639947,-503.4400308,0.00035616,14]
[314100044,1707978639956,-500.0,0.00035616,7]
[314100046,1707978639965,-500.0,0.00035616,2]
[314100048,1707978639973,-501.74485484,0.00035616,14]
[314100050,1707978639983,-500.0,0.00035616,14]
[314100052,1707978639993,-558.56,0.00035616,14]
[314100054,1707978640002,-500.0,0.00035616,14]
[314100056,1707978640011,-544.11636985,0.00035616,14]
[314100058,1707978640020,-557.04962915,0.00035616,14]
[314100061,1707978640029,-500.0,0.00035616,2]
[314100062,1707978640039,-500.0,0.00035616,14]
[314100065,1707978640048,-506.57653874,0.00035616,14]
[314100067,1707978640057,-500.0,0.00035616,14]
[314100069,1707978640066,-500.0,0.00035616,14]
[314100071,1707978640075,-500.0,0.00035616,14]
[314100073,1707978640084,-500.0,0.00035616,14]
[314100075,1707978640094,-500.0,0.00035616,14]
[314100077,1707978640102,-574.18027158,0.00035616,14]
[314100079,1707978640112,-401.84311323,0.00035616,14]
[314100081,1707978640121,-705.96,0.00035616,14]
[314100083,1707978640130,-506.21858276,0.00035616,14]
[314100085,1707978640139,-500.0,0.00035616,14]
[314100087,1707978640147,-266.15669203,0.00035616,14]
[314100089,1707978640156,-500.0,0.00035616,14]
[314100091,1707978640165,-503.20204968,0.00035616,14]
[314100093,1707978640174,-500.0,0.00035616,14]
[314100095,1707978640183,-648.82,0.00035616,14]
[314100097,1707978640192,-500.0,0.00035616,14]
[314100099,1707978640201,-500.0,0.00035616,14]
[314100101,1707978640211,-500.0,0.00035616,14]
[314100103,1707978640220,-500.0,0.00035616,14]
[314100105,1707978640230,-500.0,0.00035616,14]
[314100106,1707978640239,-500.0,0.00035616,14]
[314100108,1707978640248,-403.79557639,0.00035616,14]
[314100111,1707978640258,-500.0,0.00035616,14]
[314100112,1707978640267,-646.15064202,0.00035616,14]
[314100114,1707978640276,-500.0,0.00035616,14]
[314100117,1707978640285,-500.0,0.00035616,14]
[314100119,1707978640295,-500.0,0.00035616,7]
[314100121,1707978640304,-583.6952767,0.00035616,14]
[314100122,1707978640313,-178.61972058,0.00035616,14]
[314100124,1707978640322,-500.0,0.00035616,14]
[314100127,1707978640332,-551.44609297,0.00035616,14]
[314100129,1707978640342,-500.0,0.00035616,14]
[314100130,1707978640351,-500.0,0.00035616,14]
[314100132,1707978640360,-500.0,0.00035616,14]
[314100134,1707978640369,-500.0,0.00035616,14]
[314100137,1707978640378,-1397.42,0.00035616,14]
[314100139,1707978640388,-500.0,0.00035616,14]
[314100141,1707978640397,-2438.2,0.00035616,14]
[314100143,1707978640406,-500.0,0.00035616,14]
[314100145,1707978640415,-2045.15,0.00035616,14]
[314100147,1707978640424,-16506.31,0.00035616,14]
[314100149,1707978640433,-506.14020754,0.00035616,14]
[314100151,1707978640442,-503.59517549,0.00035616,14]
[314100153,1707978640451,-500.0,0.00035616,14]
[314100155,1707978640460,-489.82980321,0.00035616,14]
[314100157,1707978640469,-212.18676146,0.00035616,14]
[314100159,1707978640478,-745.48,0.00035616,14]
[314100161,1707978640488,-1276.43,0.00035616,14]
[314100163,1707978640497,-500.0,0.00035616,14]
[314100165,1707978640506,-1000.0,0.00035616,2]
[314100167,1707978640515,-500.0,0.00035616,14]
[314100169,1707978640524,-504.35773399,0.00035616,14]
[314100171,1707978640533,-500.0,0.00035616,14]
[314100173,1707978640542,-531.15105575,0.00035616,14]
[314100175,1707978640551,-500.0,0.00035616,14]
[314100177,1707978640560,-15421.44,0.00035616,14]
[314100179,1707978640569,-500.0,0.00035616,14]
[314100181,1707978640578,-500.0,0.00035616,14]
[314100183,1707978640586,-500.0,0.00035616,14]
[314100185,1707978640595,-500.0,0.00035616,14]
[314100186,1707978640605,-917.82,0.00035616,14]
[314100188,1707978640614,-4922.59,0.00035616,14]
[314100190,1707978640623,-500.0,0.00035616,14]
[314100192,1707978640633,-1386.19,0.00035616,14]
[314100194,1707978640642,-2066.5,0.00035616,14]
[314100197,1707978640651,-500.0,0.00035616,14]
[314100199,1707978640660,-500.0,0.00035616,14]
[314100201,1707978640669,-500.0,0.00035616,14]
[314100203,1707978640678,-1633.37,0.00035616,14]
[314100205,1707978640687,-500.0,0.00035616,14]
[314100206,1707978640696,-500.0,0.00035616,14]
[314100208,1707978640705,-500.0,0.00035616,14]
[314100210,1707978640714,-500.0,0.00035616,14]
[314100212,1707978640723,-502.47326589,0.00035616,14]
[314100214,1707978640731,-500.0,0.00035616,14]
[314100216,1707978640740,-542.81677724,0.00035616,14]
[314100218,1707978640749,-542.47,0.00035616,14]
[314100220,1707978640758,-500.0,0.00035616,14]
[314100222,1707978640767,-500.0,0.00035616,14]
[314100224,1707978640776,-500.0,0.00035616,14]
[314100226,1707978640785,-500.0,0.00035616,14]
[314100229,1707978640795,-500.0,0.00035616,14]
[314100231,1707978640806,-500.0,0.00035616,14]
[314100233,1707978640816,-500.0,0.00035616,14]
[314100234,1707978640825,-500.0,0.00035616,14]
[314100236,1707978640835,-500.0,0.00035616,14]
[314100239,1707978640846,-500.0,0.00035616,14]
[314100241,1707978640856,-500.0,0.00035616,14]
[314100243,1707978640865,-536.17297969,0.00035616,14]
[314100245,1707978640875,-500.0,0.00035616,2]
[314100247,1707978640885,-450.74553218,0.00035616,14]
[314100249,1707978640894,-242.14726824,0.00035616,14]
[314100251,1707978640903,-15057.46,0.00035616,14]
[314100253,1707978640912,-500.0,0.00035616,14]
[314100255,1707978640921,-500.0,0.00035616,14]
[314100257,1707978640930,-500.0,0.00035616,14]
[314100259,1707978640939,-568.45781319,0.00035616,14]
[314100261,1707978640948,-214.77595712,0.00035616,14]
[314100263,1707978640957,-415.00435409,0.00035616,14]
[314100265,1707978640966,-500.0,0.00035616,14]
[314100267,1707978640975,-839.88,0.00035616,14]
[314100269,1707978640984,-500.0,0.00035616,14]
[314100271,1707978640994,-500.0,0.00035616,14]
[314100273,1707978641003,-500.0,0.00035616,14]
[314100275,1707978641012,-500.0,0.00035616,14]
[314100277,1707978641021,-500.0,0.00035616,14]
[314100279,1707978641030,-500.0,0.00035616,14]
[314100281,1707978641039,-500.0,0.00035616,14]
[314100290,1707978641114,-500.0,0.00035616,14]
[314100292,1707978641123,-500.0,0.00035616,14]
[314100294,1707978641133,-500.0,0.00035616,14]
[314100296,1707978641141,-500.0,0.00035616,14]
[314100298,1707978641151,-641.09533347,0.00035616,14]
[314100300,1707978641160,-332.80978677,0.00035616,14]
[314100302,1707978641168,-346.27020784,0.00035616,14]
[314100304,1707978641178,-500.0,0.00035616,14]
[314100306,1707978641186,-542.99508916,0.00035616,14]
[314100308,1707978641195,-537.32415321,0.00035616,14]
[314100310,1707978641204,-1422.01,0.00035616,14]
[314100312,1707978641213,-2434.75,0.00035616,14]
[314100314,1707978641222,-500.0,0.00035616,14]
[314100316,1707978641231,-500.0,0.00035616,14]
[314100318,1707978641240,-500.0,0.00035616,14]
[314100320,1707978641250,-500.0,0.00035616,14]
[314100322,1707978641259,-8324.52,0.00035616,14]
[314100324,1707978641268,-508.16048991,0.00035616,14]
[314100326,1707978641277,-500.0,0.00035616,14]
[314100328,1707978641286,-500.0,0.00035616,14]
[314100330,1707978641295,-500.0,0.00035616,14]
[314100332,1707978641304,-171.89335008,0.00035616,14]
[314100334,1707978641313,-2010.78,0.00035616,14]
[314100336,1707978641322,-505.56615774,0.00035616,14]
[314100338,1707978641332,-505.28274655,0.00035616,14]
[314100340,1707978641341,-14936.71,0.00035616,14]
[314100342,1707978641350,-7806.16,0.00035616,14]
[314100344,1707978641361,-954.78,0.00035616,14]
[314100346,1707978641370,-500.0,0.00035616,14]
[314100348,1707978641379,-311.37712662,0.00035616,14]
[314100350,1707978641388,-506.64620486,0.00035616,14]
[314100352,1707978641397,-3262.03,0.00035616,14]
[314100354,1707978641406,-502.4620901,0.00035616,14]
[314100356,1707978641415,-505.73434112,0.00035616,14]
[314100358,1707978641424,-25620.75,0.00035616,14]
[314100360,1707978641433,-1822.92,0.00035616,14]
[314100362,1707978641442,-500.0,0.00035616,14]
[314100364,1707978641451,-500.0,0.00035616,14]
[314100366,1707978641460,-1050.29,0.00035616,14]
[314100368,1707978641469,-500.0,0.00035616,14]
[314100370,1707978641479,-502.42635629,0.00035616,14]
[314100371,1707978641488,-500.0,0.00035616,14]
[314100372,1707978641497,-500.0,0.00035616,14]
[314100373,1707978641506,-500.0,0.00035616,14]
[314100374,1707978641515,-500.0,0.00035616,14]
[314100375,1707978641524,-500.0,0.00035616,14]
[314100376,1707978641533,-500.0,0.00035616,14]
[314100377,1707978641541,-500.0,0.00035616,14]
[314100378,1707978641550,-500.0,0.00035616,14]
[314100379,1707978641559,-500.0,0.00035616,14]
[314100380,1707978641568,-500.0,0.00035616,14]
[314100381,1707978641577,-500.0,0.00035616,14]
[314100382,1707978641587,-500.0,0.00035616,14]
[314100384,1707978641596,-500.0,0.00035616,14]
[314100386,1707978641606,-500.0,0.00035616,14]
[314100388,1707978641615,-500.0,0.00035616,14]
[314100390,1707978641624,-500.0,0.00035616,14]
[314100392,1707978641633,-504.77975332,0.00035616,14]
[314100394,1707978641641,-1673.85,0.00035616,14]
[314100396,1707978641651,-200.81707527,0.00035616,14]
[314100398,1707978641660,-783.47,0.00035616,14]
[314100400,1707978641670,-501.30006247,0.00035616,14]
[314100402,1707978641678,-500.0,0.00035752,15]
[314100404,1707978641687,-500.0,0.00035752,15]
[314100406,1707978641696,-197.33585836,0.00035752,15]
[314100408,1707978641705,-596.70127433,0.00035752,15]
[314100410,1707978641714,-500.0,0.00035752,15]
[314100412,1707978641723,-532.82389763,0.00035752,15]
[314100414,1707978641733,-539.02217487,0.00035752,15]
[314100416,1707978641742,-500.0,0.00035752,15]
[314100418,1707978641752,-500.0,0.00035752,15]
[314100421,1707978641761,-500.0,0.00035752,15]
[314100423,1707978641770,-500.0,0.00035752,15]
[314100424,1707978641779,-500.0,0.00035752,15]
[314100426,1707978641788,-500.0,0.00035752,15]
[314100428,1707978641800,-500.0,0.00035752,15]
[314100430,1707978641809,-400.0,0.00035752,15]
[314100432,1707978641818,-500.0,0.00035752,15]
[314100434,1707978641827,-500.0,0.00035752,15]
[314100436,1707978641836,-500.0,0.00035752,15]
[314100438,1707978641845,-1159.63,0.00035752,2]
[314100440,1707978641855,-1159.63,0.00035752,2]
[314100442,1707978641864,-409.87247855,0.00035752,15]
[314100444,1707978641873,-500.0,0.00035752,15]
[314100446,1707978641885,-500.0,0.00035752,15]
[314100448,1707978641894,-243.25576114,0.00035752,15]
[314100450,1707978641903,-337.36669679,0.00035752,15]
[314100452,1707978641912,-500.0,0.00035752,15]
[314100454,1707978641921,-500.0,0.00035752,15]
[314100456,1707978641930,-500.0,0.00035752,15]
[314100458,1707978641939,-500.0,0.00035752,15]
[314100460,1707978641948,-500.0,0.00035752,15]
[314100463,1707978641957,-500.0,0.00035752,15]
[314100465,1707978641966,-500.0,0.00035752,14]
[314100467,1707978641976,-500.0,0.00035752,14]
[314100469,1707978641986,-500.0,0.00035753,14]
[314100471,1707978641995,-500.0,0.00035753,7]
[314100473,1707978642005,-500.0,0.00035753,14]
[314100475,1707978642015,-500.0,0.00035753,14]
[314100476,1707978642024,-500.0,0.00035753,14]
[314100478,1707978642033,-500.0,0.00035753,14]
[314100480,1707978642042,-500.0,0.00035753,14]
[314100481,1707978642051,-500.0,0.00035753,2]
[314100483,1707978642060,-500.0,0.00035753,14]
[314100484,1707978642069,-500.0,0.00035753,14]
[314100485,1707978642078,-500.0,0.00035753,14]
[314100486,1707978642087,-500.0,0.00035753,14]
[314100487,1707978642096,-500.0,0.00035753,14]
[314100488,1707978642106,-500.0,0.00035753,14]
[314100489,1707978642116,-500.0,0.00035753,14]
[314100490,1707978642125,-500.0,0.00035753,14]
[314100491,1707978642134,-500.0,0.00035753,14]
[314100492,1707978642143,-500.0,0.00035753,14]
[314100493,1707978642153,-500.0,0.00035753,14]
[314100494,1707978642162,-860.96,0.00035753,14]
[314100495,1707978642171,-507.8299765,0.00035753,14]
[314100496,1707978642180,-500.0,0.00035753,14]
[314100497,1707978642190,-500.0,0.00035753,14]
[314100498,1707978642199,-500.0,0.00035753,14]
[314100500,1707978642208,-2137.07,0.00035753,7]
[314100501,1707978642217,-500.0,0.00035753,14]
[314100503,1707978642226,-500.0,0.00035753,14]
[314100504,1707978642236,-500.0,0.00035753,14]
[314100506,1707978642245,-569.62856393,0.00035753,14]
[314100507,1707978642254,-170.56767808,0.00035753,2]
[314100509,1707978642264,-505.07339131,0.00035753,14]
[314100511,1707978642273,-500.0,0.00035753,14]
[314100512,1707978642281,-500.0,0.00035753,14]
[314100513,1707978642291,-500.0,0.00035753,14]
[314100514,1707978642300,-547.99777768,0.00035753,14]
[314100515,1707978642309,-500.0,0.00035753,14]
[314100516,1707978642318,-500.0,0.00035753,14]
[314100517,1707978642330,-644.72,0.00035753,14]
[314100518,1707978642339,-500.0,0.00035753,14]
[314100519,1707978642348,-500.0,0.00035753,14]
[314100520,1707978642358,-500.0,0.00035753,14]
[314100521,1707978642367,-500.0,0.00035753,2]
[314100522,1707978642376,-500.0,0.00035753,14]
[314100523,1707978642385,-945.76,0.00035753,14]
[314100524,1707978642395,-220.0,0.00035753,2]
[314100525,1707978642404,-607.78,0.00035753,14]
[314100526,1707978642413,-500.0,0.00035753,7]
[314100527,1707978642422,-500.0,0.00035753,14]
[314100528,1707978642431,-558.56,0.00035753,14]
[314100529,1707978642440,-393.15183719,0.00035753,14]
[314100530,1707978642449,-500.0,0.00035753,2]
[314100531,1707978642459,-500.0,0.00035753,14]
[314100532,1707978642468,-500.0,0.00035753,14]
[314100533,1707978642477,-500.0,0.00035753,14]
[314100534,1707978642487,-500.0,0.00035753,14]
[314100535,1707978642496,-500.0,0.00035753,14]
[314100536,1707978642505,-705.96,0.00035753,14]
[314100537,1707978642514,-592.34587699,0.00035753,14]
[314100538,1707978642523,-500.0,0.00035753,14]
[314100539,1707978642532,-495.88183261,0.00035753,14]
[314100540,1707978642541,-648.82,0.00035753,14]
[314100541,1707978642550,-500.0,0.00035753,14]
[314100542,1707978642620,-500.0,0.00035753,14]
[314100543,1707978642630,-246.76428622,0.00035753,14]
[314100544,1707978642639,-500.0,0.00035753,14]
[314100545,1707978642648,-500.0,0.00035753,14]
[314100546,1707978642657,-500.0,0.00035753,14]
[314100547,1707978642666,-500.0,0.00035753,14]
[314100548,1707978642675,-500.0,0.00035753,14]
[314100549,1707978642683,-500.0,0.00035753,14]
[314100550,1707978642692,-502.57460696,0.00035753,7]
[314100551,1707978642701,-500.0,0.00035753,14]
[314100552,1707978642710,-500.0,0.00035753,14]
[314100553,1707978642719,-500.0,0.00035753,14]
[314100554,1707978642728,-500.0,0.00035753,14]
[314100555,1707978642736,-500.0,0.00035753,14]
[314100556,1707978642745,-1397.42,0.00035753,14]
[314100557,1707978642754,-500.0,0.00035753,14]
[314100558,1707978642764,-2438.2,0.00035753,14]
[314100559,1707978642773,-529.90121524,0.00035753,14]
[314100560,1707978642782,-2045.15,0.00035753,14]
[314100561,1707978642792,-16506.31,0.00035753,14]
[314100562,1707978642803,-500.0,0.00035753,14]
[314100563,1707978642812,-745.48,0.00035753,14]
[314100564,1707978642821,-1276.43,0.00035753,14]
[314100565,1707978642830,-500.0,0.00035753,14]
[314100566,1707978642839,-1005.42571822,0.00035753,2]
[314100567,1707978642849,-500.0,0.00035753,14]
[314100568,1707978642858,-520.94030356,0.00035753,14]
[314100569,1707978642867,-537.0742866,0.00035753,14]
[314100570,1707978642878,-15421.44,0.00035753,14]
[314100571,1707978642888,-508.26930953,0.00035753,14]
[314100572,1707978642897,-500.0,0.00035753,14]
[314100573,1707978642906,-375.44487099,0.00035753,14]
[314100574,1707978642915,-578.55450017,0.00035753,14]
[314100575,1707978642924,-917.82,0.00035753,14]
[314100576,1707978642933,-4922.59,0.00035753,14]
[314100577,1707978642942,-500.0,0.00035753,14]
[314100578,1707978642951,-1386.19,0.00035753,14]
[314100579,1707978642960,-2066.5,0.00035753,14]
[314100581,1707978642970,-442.04517344,0.00035753,14]
[314100583,1707978642980,-500.0,0.00035753,14]
[314100584,1707978642990,-1633.37,0.00035753,14]
[314100585,1707978642999,-500.0,0.00035753,14]